bitfinex-derivatives/quotes_ETHF0:USTF0_20251007
["timestamp","ask_amount","ask_price","bid_price","bid_amount"]
[1759816124186,0.7324,4720.8,4720.7,3.91859949]
[1759816127184,3.42825835,4720.8,4720.7,3.91859949]
[1759816127396,3.64025835,4720.8,4720.7,3.91859949]
[1759816128094,3.42825835,4720.8,4720.7,3.91859949]
[1759816128287,3.64025835,4720.8,4720.7,3.91859949]
[1759816129993,2.69585835,4720.8,4720.7,3.91859949]
[1759816130292,2.89665835,4720.8,4720.7,3.91859949]
[1759816130493,3.22095835,4720.8,4720.7,3.91859949]
[1759816130693,3.43725835,4720.8,4720.7,3.91859949]
[1759816130895,0.7414,4720.8,4720.7,3.91859949]
[1759816132292,0.00253847,4721.7,4721.5,0.1207]
[1759816132494,0.212,4722.8,4722.5,0.204]
[1759816132792,0.4171,4722.3,4722.2,0.204]
[1759816132984,0.8678,4722.0,4721.9,0.505]
[1759816133189,1.33711251,4722.0,4721.9,0.204]
[1759816133389,1.33986344,4722.0,4721.9,0.204]
[1759816134184,1.33986344,4722.0,4721.9,0.505]
[1759816135495,1.21346344,4722.0,4721.9,1.09431]
[1759816135685,1.10116344,4722.0,4721.9,1.09431]
[1759816136292,0.88916344,4722.0,4721.9,1.09431]
[1759816136496,1.10116344,4722.0,4721.9,0.7133]
[1759816136998,0.88916344,4722.0,4721.9,0.7133]
[1759816137486,0.88486344,4722.0,4721.9,0.7133]
[1759816138099,0.47206344,4722.0,4721.9,0.7133]
[1759816141301,0.00275093,4722.0,4721.9,0.7133]
[1759816145006,0.3113,4722.8,4722.7,0.4156]
[1759816145007,0.2103,4722.8,4722.7,0.4156]
[1759816145202,0.2103,4722.8,4722.3,0.3193]
[1759816145203,0.38095,4722.6,4722.3,0.3193]
[1759816145403,0.7296,4722.4,4722.3,0.2029]
[1759816145599,0.4183,4721.6,4721.5,3.4107]
[1759816145909,0.7296,4721.6,4721.5,3.6234]
[1759816146100,0.73206625,4721.6,4721.5,3.6234]
[1759816146298,0.73206625,4721.6,4721.5,3.9427]
[1759816151710,0.73206625,4721.6,4721.5,3.4107]
[1759816151909,1.20234842,4721.6,4721.5,3.4107]
[1759816152109,1.20234842,4721.6,4721.5,3.9427]
[1759816154708,1.20234842,4721.6,4721.5,3.6234]
[1759816154907,1.20234842,4721.6,4721.5,3.4107]
[1759816155102,1.11066,4721.3,4721.2,0.5222]
[1759816155303,1.11066,4721.3,4721.2,0.7349]
[1759816155513,1.58113953,4721.3,4721.2,0.4156]
[1759816155903,1.58113953,4721.3,4721.2,0.7349]
[1759816156314,4.36804794,4721.3,4721.2,0.2029]
[1759816156812,1.1107,4720.8,4720.7,0.00249949]
[1759816157004,1.79325504,4720.8,4720.7,0.00249949]
[1759816157315,9.5167422,4720.8,4720.7,0.00249949]
[1759816159412,9.5167422,4720.8,4719.4,0.7349]
[1759816159413,0.5216,4719.5,4719.4,0.7349]
[1759816160111,0.7296,4719.5,4719.4,0.7349]
[1759816160310,0.7296,4719.5,4719.4,0.73731035]
[1759816160514,1.32345389,4719.5,4719.4,0.73731035]
[1759816161204,3.90374025,4719.5,4719.4,0.21511035]
[1759816161409,3.90374025,4719.5,4718.7,0.7349]
[1759816161410,0.7296,4718.8,4718.7,0.7349]
[1759816162304,0.38122,4719.3,4719.0,0.5392]
[1759816162509,0.5932,4719.5,4719.4,0.4156]
[1759816162714,0.5216,4719.5,4719.4,0.7349]
[1759816163412,0.9028,4719.5,4719.4,0.7349]
[1759816163814,0.59146,4720.0,4719.9,0.2029]
[1759816164020,1.44676,4720.0,4719.9,0.7349]
[1759816164611,3.2078,4720.2,4719.9,0.7349]
[1759816164812,0.2103,4720.5,4720.4,0.7349]
[1759816165014,0.7296,4720.5,4720.4,0.7349]
[1759816165616,0.4183,4720.5,4720.4,0.7349]
[1759816165922,0.5216,4720.5,4720.4,0.7349]
[1759816168522,0.7296,4720.5,4720.4,0.7349]
[1759816169122,0.2103,4720.5,4720.4,0.7349]
[1759816169722,0.5216,4720.5,4720.4,0.7349]
[1759816170618,0.2103,4720.5,4720.4,0.7349]
[1759816170919,1.11075,4720.2,4720.1,0.2029]
[1759816171117,0.8536,4720.0,4719.9,0.5222]
[1759816171425,0.7296,4720.0,4719.9,0.7349]
[1759816173926,0.3113,4719.9,4719.4,3.5271]
[1759816174219,0.5216,4719.5,4719.4,3.9427]
[1759816174421,0.7359,4719.5,4719.4,3.9427]
[1759816175027,0.8663,4719.5,4719.4,3.9427]
[1759816175325,0.7359,4719.5,4719.4,3.9427]
[1759816175824,0.8663,4719.5,4719.4,3.4107]
[1759816176126,0.8663,4719.5,4719.4,3.9424]
[1759816176425,0.92524,4719.0,4718.9,3.9503]
[1759816176821,1.26994,4719.0,4718.9,3.4186]
[1759816177613,1.26994,4719.0,4718.9,3.723]
[1759816178126,1.26994,4719.0,4718.9,3.4186]
[1759816178422,1.26994,4719.0,4718.9,3.2078]
[1759816179020,1.11316,4718.8,4718.6,0.3044]
[1759816179220,1.11316,4718.8,4718.3,3.5122]
[1759816179426,3.8323685,4718.8,4718.7,0.72954864]
[1759816179629,0.38126,4718.9,4718.8,0.3044]
[1759816179825,0.58336,4718.9,4718.8,0.7268]
[1759816180019,0.78586,4718.9,4718.8,0.7268]
[1759816180324,0.78586,4718.9,4718.8,0.2028]
[1759816180628,1.11316,4718.9,4718.8,0.5072]
[1759816180828,0.2025,4718.9,4718.8,0.7268]
[1759816181022,0.91103,4719.2,4719.1,0.4224]
[1759816181227,1.79450099,4719.2,4719.1,0.2028]
[1759816181422,4.52483332,4719.2,4719.1,0.5072]
[1759816181623,4.05546233,4719.2,4719.1,0.5072]
[1759816181927,4.05546233,4719.2,4719.1,0.7268]
[1759816183023,3.46223233,4719.2,4719.1,0.7268]
[1759816183224,0.212,4719.2,4719.1,0.7268]
[1759816183526,0.3273,4719.5,4719.4,0.7268]
[1759816183527,0.3812,4719.5,4719.4,0.7268]
[1759816183728,0.4046,4719.9,4719.8,0.4224]
[1759816183929,0.7319,4719.9,4719.8,0.7268]
[1759816184129,3.67768275,4719.9,4719.8,0.7268]
[1759816184630,0.7319,4719.9,4719.8,0.7268]
[1759816186829,0.212,4720.1,4719.8,0.7268]
[1759816187023,0.5298,4720.0,4719.9,0.7268]
[1759816187224,0.91097,4720.0,4719.9,0.7268]
[1759816187423,1.11307,4720.0,4719.9,0.7268]
[1759816187629,1.24057,4720.0,4719.9,0.2028]
[1759816187825,0.3273,4719.7,4719.5,0.3044]
[1759816188030,0.7319,4719.6,4719.5,0.7268]
[1759816188627,0.7319,4719.6,4719.5,0.8472]
[1759816193728,1.11304,4720.2,4720.1,0.524]
[1759816194032,4.1660231,4720.2,4720.1,0.7268]
[1759816194430,3.9540231,4720.2,4720.1,0.7268]
[1759816194632,4.1660231,4720.2,4720.1,0.7268]
[1759816194829,4.1660231,4720.2,4720.1,0.2028]
[1759816195128,3.7614231,4720.2,4719.7,0.3044]
[1759816195328,0.7319,4719.8,4719.7,0.7268]
[1759816196430,0.5298,4719.8,4719.7,0.7268]
[1759816196635,0.7857,4720.8,4720.7,0.5072]
[1759816196835,1.46774528,4720.8,4720.7,0.5072]
[1759816197128,4.53007579,4720.8,4720.7,0.5072]
[1759816198226,4.31807579,4720.8,4720.7,0.2028]
[1759816198427,4.53007579,4720.8,4720.7,0.5072]
[1759816200433,0.58361,4720.6,4720.5,0.2028]
[1759816200635,1.25575528,4720.6,4720.5,0.2028]
[1759816200832,0.4046,4720.2,4720.1,4.31575]
[1759816201027,0.7319,4720.2,4720.1,4.31575]
[1759816201429,0.7319,4720.2,4720.1,3.9346]
[1759816201634,0.7319,4720.2,4720.1,3.4106]
[1759816202132,0.7319,4720.2,4720.1,3.2078]
[1759816202636,0.7319,4720.2,4720.1,3.9346]
[1759816202836,0.7319,4721.1,4721.0,0.2028]
[1759816203034,1.20192935,4721.1,4721.0,0.2028]
[1759816203828,1.20192935,4721.1,4720.7,3.8933]
[1759816203829,0.7319,4720.8,4720.7,3.2078]
[1759816204034,1.20192935,4720.8,4720.7,3.2078]
[1759816204336,1.20192935,4720.8,4720.7,3.4106]
[1759816204734,0.3976,4720.4,4720.3,0.5199]
[1759816205032,0.7099,4720.4,4720.3,0.2155]
[1759816206338,0.3976,4720.4,4720.1,3.58894]
[1759816206639,0.7099,4720.2,4720.1,3.2078]
[1759816206838,0.7099,4720.2,4720.1,3.4233]
[1759816207136,0.7099,4720.2,4720.1,3.7493]
[1759816207932,0.3123,4720.8,4720.1,3.6247]
[1759816208140,0.5118,4720.8,4720.7,3.9507]
[1759816208439,3.94865043,4720.8,4720.7,0.7429]
[1759816208932,0.1995,4720.5,4720.4,0.326]
[1759816209140,0.8415,4720.5,4720.4,0.5415]
[1759816209738,0.8415,4720.5,4720.4,0.2155]
[1759816209934,1.31151143,4720.5,4720.4,0.2155]
[1759816210531,0.3123,4720.4,4720.2,3.58894]
[1759816210835,0.7099,4720.3,4720.2,4.33184]
[1759816212539,1.18041191,4720.3,4720.2,4.33184]
[1759816213744,1.18041191,4720.3,4720.2,3.9507]
[1759816214042,1.18041191,4720.3,4720.2,3.4233]
[1759816214243,1.18041191,4720.3,4720.2,3.7493]
[1759816214445,1.18041191,4720.3,4720.2,3.9507]
[1759816215348,1.18041191,4720.3,4720.2,0.7429]
[1759816216041,1.18041191,4720.3,4720.2,0.2155]
[1759816216236,0.47051191,4720.3,4719.7,3.4233]
[1759816216442,0.3976,4719.8,4719.7,3.2078]
[1759816216646,0.86811191,4719.8,4719.7,3.2078]
[1759816216949,1.18041191,4719.8,4719.7,3.4233]
[1759816217148,1.18041191,4719.8,4719.7,0.2155]
[1759816217746,1.18041191,4719.8,4719.7,0.5415]
[1759816218344,1.18041191,4719.8,4719.7,0.7429]
[1759816219840,0.47051191,4719.8,4719.7,0.7429]
[1759816220040,0.3123,4720.7,4720.3,0.4169]
[1759816220247,0.98248342,4720.6,4720.5,0.7429]
[1759816220646,0.47068342,4720.6,4720.5,0.8645]
[1759816225955,0.98248342,4720.6,4720.5,0.8645]
[1759816226154,0.97684505,4720.6,4720.5,0.8645]
[1759816226851,0.46504505,4720.6,4720.5,0.8645]
[1759816227049,0.5118,4721.4,4721.3,0.7429]
[1759816227249,0.1995,4721.4,4721.3,0.7429]
[1759816227445,0.5118,4721.4,4721.3,0.7429]
[1759816229359,0.7099,4721.4,4721.3,0.7429]
[1759816229855,0.7099,4721.1,4721.0,0.2155]
[1759816230056,0.7099,4721.1,4720.6,0.326]
[1759816230057,0.7099,4720.7,4720.6,0.2155]
[1759816230459,0.7099,4720.7,4720.6,0.5415]
[1759816231161,0.7099,4720.7,4720.6,0.7429]
[1759816231361,0.7099,4720.7,4720.5,3.2078]
[1759816231556,0.5118,4720.6,4720.5,3.7352]
[1759816231762,0.7099,4720.6,4720.5,3.9507]
[1759816233362,0.7099,4720.6,4720.5,4.0723]
[1759816233363,0.5118,4720.6,4720.5,4.0723]
[1759816233662,0.89289,4720.9,4720.8,0.4169]
[1759816233863,0.89289,4720.9,4720.8,0.7429]
[1759816234159,1.09099,4720.9,4720.8,0.7429]
[1759816234355,1.10361,4720.6,4720.5,3.2078]
[1759816234562,1.31561,4720.6,4720.5,3.2078]
[1759816234858,4.05482611,4720.6,4720.5,3.2078]
[1759816235460,0.842,4720.0,4719.9,3.7403]
[1759816236464,0.7225,4719.6,4719.5,0.7427]
[1759816237060,0.1265,4719.5,4719.4,3.2078]
[1759816237258,0.8317,4719.5,4719.4,3.4262]
[1759816238765,0.7052,4719.5,4719.4,3.94]
[1759816238961,0.1996,4719.6,4719.4,3.2078]
[1759816239157,0.8317,4719.5,4719.4,3.4262]
[1759816239461,0.8317,4719.5,4719.4,3.94]
[1759816239662,0.7052,4719.5,4719.4,3.94]
[1759816241164,0.8317,4719.5,4719.4,3.94]
[1759816241364,0.7052,4719.5,4719.4,3.94]
[1759816241764,0.3077,4719.9,4719.4,3.94]
[1759816241965,0.96970436,4719.8,4719.7,0.7322]
[1759816242259,3.94375749,4719.8,4719.7,0.7322]
[1759816242860,3.48135313,4719.8,4719.7,0.7322]
[1759816243461,3.69335313,4719.8,4719.7,0.7322]
[1759816244261,3.2078,4720.2,4720.0,0.51156]
[1759816244566,3.2078,4720.2,4720.1,0.7322]
[1759816244761,3.67003208,4720.2,4720.1,0.7322]
[1759816245069,4.17733208,4720.2,4720.1,0.7322]
[1759816245969,1.16738905,4720.2,4720.1,0.7322]
[1759816246266,0.7052,4720.2,4720.1,0.7322]
[1759816246967,3.49461868,4720.2,4720.1,0.2184]
[1759816247166,3.95683292,4720.2,4720.1,0.2184]
[1759816247666,3.25163292,4720.2,4720.1,0.7322]
[1759816247870,3.2078,4720.5,4720.4,0.7322]
[1759816248165,3.86960321,4720.5,4720.4,0.7322]
[1759816248366,4.17730321,4720.5,4720.4,0.7322]
[1759816248767,3.86960321,4720.5,4720.4,0.7322]
[1759816249065,0.1996,4720.5,4720.4,0.7322]
[1759816249670,0.5073,4720.5,4720.4,0.7322]
[1759816250970,0.7052,4720.5,4720.4,0.7322]
[1759816251173,0.59312,4720.6,4720.5,0.1304]
[1759816251468,1.35065827,4720.6,4720.5,0.7322]
[1759816251772,1.56265827,4720.6,4720.5,0.7322]
[1759816252468,1.76055827,4720.6,4720.5,0.7322]
[1759816252873,1.16743827,4720.6,4720.5,0.7322]
[1759816254078,0.7052,4718.8,4718.7,1.52172488]
[1759816254273,0.9172,4718.8,4718.7,0.00274864]
[1759816254578,4.09262206,4718.8,4718.7,0.00274864]
[1759816261274,1.21302,4718.0,4717.9,0.0211961]
[1759816261474,1.21302,4718.0,4717.1,0.2184]
[1759816261475,0.3975,4717.2,4717.1,0.2184]
[1759816261779,0.7052,4717.0,4716.9,0.7322]
[1759816261979,0.5073,4717.0,4716.9,0.7322]
[1759816262277,0.50932974,4717.0,4716.9,0.7347267]
[1759816262473,0.70722974,4717.0,4716.9,0.7347267]
[1759816262680,0.83372974,4717.0,4716.9,0.4298267]
[1759816262877,0.83372974,4717.0,4716.9,0.2209267]
[1759816263673,0.83372974,4717.0,4716.9,0.7347267]
[1759816263674,0.70722974,4717.0,4716.9,0.7347267]
[1759816264171,3.6124556,4717.0,4716.9,0.0025267]
[1759816264876,0.3068,4717.9,4717.8,0.4131]
[1759816265078,0.5149,4717.9,4717.8,0.716]
[1759816265373,0.58943,4717.9,4717.8,0.716]
[1759816266076,0.41525883,4717.9,4717.8,0.716]
[1759816267073,0.00205883,4717.9,4717.8,0.716]
[1759816270576,3.2078,4718.9,4717.8,0.716]
[1759816270577,4.39105,4718.9,4718.8,0.716]
[1759816270782,4.21425,4718.9,4718.8,0.716]
[1759816270986,6.81514932,4718.9,4718.8,0.716]
[1759816271184,7.02714932,4718.9,4718.8,0.716]
[1759816271579,3.21026614,4718.9,4718.8,0.716]
[1759816271881,3.41836614,4718.9,4718.8,0.716]
[1759816272276,7.06837453,4718.9,4718.8,0.716]
[1759816272471,0.3068,4718.5,4718.1,3.2078]
[1759816272682,0.3068,4718.5,4718.1,3.709]
[1759816272683,0.72,4718.2,4718.1,3.709]
[1759816273076,0.72,4718.2,4718.1,3.9238]
[1759816273477,0.4132,4718.2,4718.1,3.9238]
[1759816273685,0.72,4717.7,4717.6,0.5012]
[1759816273878,0.932,4717.7,4717.6,0.1983]
[1759816274073,0.932,4717.7,4717.6,0.5012]
[1759816275083,3.42157925,4717.7,4717.6,0.716]
[1759816275284,0.6252,4717.7,4717.6,0.716]
[1759816277081,3.2078,4718.2,4717.6,0.4131]
[1759816277283,3.4159,4718.2,4718.1,0.4131]
[1759816277478,4.1398,4718.2,4718.1,0.716]
[1759816277987,4.52111,4718.2,4718.1,0.716]
[1759816278188,1.10134,4717.9,4717.8,0.5012]
[1759816278583,0.4132,4717.6,4717.5,0.5012]
[1759816278781,0.4132,4717.6,4717.5,0.716]
[1759816279088,0.4132,4717.6,4717.5,0.8438]
[1759816280980,0.212,4717.8,4717.5,0.92226]
[1759816281185,0.212,4717.8,4717.7,0.716]
[1759816281786,0.212,4717.9,4717.8,0.716]
[1759816281986,0.212,4717.9,4717.8,3.9238]
[1759816282183,0.3068,4718.2,4718.1,0.716]
[1759816282184,0.2081,4718.2,4718.1,0.716]
[1759816282488,0.4201,4718.2,4718.1,0.716]
[1759816282879,0.3068,4718.7,4718.2,0.3029]
[1759816283088,0.59181614,4718.9,4718.8,0.4131]
[1759816283285,1.26875939,4718.9,4718.8,0.716]
[1759816283486,4.56141186,4718.9,4718.8,0.716]
[1759816284491,3.96816186,4718.9,4718.8,0.716]
[1759816284687,3.66136186,4718.9,4718.8,0.716]
[1759816284888,1.09260939,4718.9,4718.8,0.716]
[1759816285288,0.88060939,4718.9,4718.8,0.716]
[1759816285484,0.67550939,4718.9,4718.8,0.716]
[1759816285691,0.67940939,4718.9,4718.8,0.716]
[1759816285892,0.46740939,4718.9,4718.8,0.716]
[1759816286192,0.67940939,4718.9,4718.8,0.716]
[1759816286390,0.00246614,4718.9,4718.8,0.716]
[1759816287996,0.72,4718.1,4718.0,0.5012]
[1759816288193,0.4132,4718.1,4718.0,0.716]
[1759816288390,0.2081,4718.1,4718.0,0.8438]
[1759816289298,0.58937,4718.6,4718.5,0.5409]
[1759816289502,1.0563151,4718.6,4718.5,0.8438]
[1759816289701,1.2614151,4718.6,4718.5,0.8438]
[1759816289896,1.5682151,4718.6,4718.5,0.8438]
[1759816290303,0.2081,4718.6,4718.5,0.8438]
[1759816290501,0.59181614,4718.9,4718.8,0.4131]
[1759816290702,1.26382211,4718.9,4718.8,0.716]
[1759816290897,1.57062211,4718.9,4718.8,0.716]
[1759816291099,0.2081,4718.5,4718.4,3.2078]
[1759816291298,0.72,4718.5,4718.4,0.5012]
[1759816291493,0.72,4718.1,4718.0,1.01032]
[1759816291701,1.10131,4718.1,4718.0,0.629]
[1759816291901,1.10131,4718.1,4718.0,0.8438]
[1759816292098,0.72,4718.1,4718.0,0.8438]
[1759816292697,0.4132,4718.1,4718.0,0.8438]
[1759816293309,0.2081,4718.1,4718.0,0.8438]
[1759816294102,8.20802557,4718.1,4717.1,0.3041]
[1759816294304,1.2154,4717.0,4716.9,0.0025267]
[1759816294605,4.6893097,4717.0,4716.9,0.0025267]
[1759816302917,0.3158,4717.8,4717.3,0.2045]
[1759816303211,2.95989694,4717.4,4717.3,0.7305]
[1759816303399,0.4234,4717.4,4717.3,0.7305]
[1759816303604,0.637,4717.4,4717.3,0.7305]
[1759816304610,0.9528,4717.4,4717.3,0.7305]
[1759816304812,0.425,4717.1,4717.0,0.3337]
[1759816305014,0.7408,4717.1,4717.0,0.8597]
[1759816305214,0.425,4717.1,4717.0,0.8597]
[1759816305613,0.637,4717.1,4717.0,0.8597]
[1759816312220,0.212,4717.1,4717.0,0.8597]
[1759816312417,0.59278,4717.3,4717.2,0.4114]
[1759816312615,0.59275,4717.7,4717.6,0.7305]
[1759816312821,1.33415,4717.7,4717.6,0.7305]
[1759816313022,4.07158088,4717.7,4717.6,0.7305]
[1759816313222,3.75578088,4717.7,4717.6,0.7305]
[1759816313624,4.22373688,4717.7,4717.6,0.7305]
[1759816314124,4.53953688,4717.7,4717.6,0.7305]
[1759816314723,4.32753688,4717.7,4717.6,0.7305]
[1759816314923,4.53953688,4717.7,4717.6,0.7305]
[1759816317725,1.104956,4717.7,4717.6,0.7305]
[1759816318724,0.892956,4717.7,4717.6,0.7305]
[1759816319030,0.637,4717.7,4717.6,0.7305]
[1759816319732,0.425,4717.7,4717.6,0.7305]
[1759816320127,0.637,4717.7,4717.6,0.7305]
[1759816320327,1.42151659,4717.7,4717.6,0.7305]
[1759816320530,1.20951659,4717.7,4717.6,0.7305]
[1759816320830,1.42151659,4717.7,4717.6,0.7305]
[1759816321525,0.38135,4717.6,4717.4,3.2078]
[1759816321729,0.7408,4717.3,4717.2,0.3191]
[1759816322037,0.7408,4717.3,4717.0,0.1292]
[1759816322038,0.7408,4717.1,4717.0,0.8597]
[1759816322230,2.73897047,4717.3,4717.1,0.3814]
[1759816322429,0.7408,4717.9,4717.8,0.5236]
[1759816322629,1.42186506,4717.9,4717.8,0.5236]
[1759816322928,4.16083553,4717.9,4717.8,0.5236]
[1759816324130,4.16083553,4717.9,4717.4,0.3114]
[1759816324432,0.7283,4717.5,4717.4,0.7455]
[1759816324628,0.3184,4717.4,4717.0,0.1292]
[1759816324835,0.7283,4717.2,4717.1,0.5282]
[1759816325228,1.19755223,4717.2,4717.1,0.5282]
[1759816325634,1.40955223,4717.2,4717.1,0.5282]
[1759816325835,0.8477,4717.0,4716.9,3.2103267]
[1759816326029,1.31695223,4717.0,4716.9,0.0025267]
[1759816326225,4.07606835,4717.0,4716.9,0.0025267]
[1759816331441,4.28806835,4717.0,4716.9,0.0025267]
[1759816332137,4.07606835,4717.0,4716.9,0.0025267]
[1759816332337,4.28806835,4717.0,4716.9,0.0025267]
[1759816333939,7.49586835,4717.0,4716.9,0.0025267]
[1759816334243,1.10978,4716.1,4716.0,0.5282]
[1759816334445,1.32178,4716.1,4716.0,0.5282]
[1759816334644,1.10981,4715.7,4715.6,0.3114]
[1759816334843,0.3184,4715.6,4715.4,3.5192]
[1759816335042,0.9403,4715.5,4715.4,3.95516543]
[1759816335247,0.9426171,4715.5,4715.4,3.95516543]
[1759816336945,0.4184171,4715.5,4715.4,3.95516543]
[1759816337142,0.2064171,4715.5,4715.4,3.95516543]
[1759816337459,0.9426171,4715.5,4715.4,3.95516543]
[1759816340061,0.6242171,4715.5,4715.4,3.95516543]
[1759816340956,0.4184171,4715.5,4715.4,3.95516543]
[1759816341959,0.0023171,4715.5,4715.4,3.95516543]
[1759816350966,0.0023171,4715.5,4715.4,4.16716543]
[1759816351364,1.10974,4716.6,4716.5,0.2168]
[1759816351568,1.69994487,4716.6,4716.5,0.5282]
[1759816351877,4.46897287,4716.6,4716.5,0.5282]
[1759816352370,4.47086787,4716.6,4716.5,0.7455]
[1759816352568,0.88299987,4716.6,4716.5,1.25044]
[1759816352872,0.001895,4716.6,4716.5,1.25044]
[1759816353070,0.205995,4716.6,4716.5,1.25044]
[1759816353370,0.001895,4716.6,4716.5,1.25044]
[1759816354269,0.205995,4716.6,4716.5,1.25044]
[1759816354465,0.523595,4716.6,4716.5,1.25044]
[1759816354673,0.738095,4716.6,4716.5,1.25044]
[1759816355871,0.738095,4716.6,4716.5,1.12694]
[1759816356174,0.738095,4716.6,4716.5,1.10394]
[1759816356672,0.738095,4716.6,4716.5,1.22374]
[1759816358574,0.738095,4716.6,4716.5,0.7225]
[1759816358771,1.20981988,4716.6,4716.5,0.7225]
[1759816359073,0.7364,4716.1,4716.0,0.5282]
[1759816359274,1.42012488,4716.1,4716.0,0.5282]
[1759816359475,0.79488,4716.0,4715.9,3.2078]
[1759816359672,1.58960488,4716.0,4715.9,3.2078]
[1759816359874,4.28866531,4716.0,4715.9,3.5299]
[1759816360174,4.41616531,4716.0,4715.9,3.2078]
[1759816360775,4.41616531,4716.0,4715.9,3.736]
[1759816361077,4.28866531,4716.0,4715.9,3.736]
[1759816362567,4.28866531,4716.0,4715.9,0.5282]
[1759816365878,4.28866531,4716.0,4715.9,0.7327]
[1759816366271,1.1179,4715.8,4715.7,0.7327]
[1759816366479,1.3299,4715.8,4715.7,0.7327]
[1759816366776,1.1179,4715.8,4715.7,0.7327]
[1759816367178,1.3299,4715.8,4715.7,0.7327]
[1759816367676,1.8019411,4715.8,4715.7,0.7327]
[1759816369080,1.4204411,4715.8,4715.7,0.7327]
[1759816370378,1.2084411,4715.8,4715.7,0.7327]
[1759816370681,1.0974411,4715.8,4715.7,0.7327]
[1759816371180,1.4204411,4715.8,4715.7,0.7327]
[1759816371682,1.2084411,4715.8,4715.7,0.7327]
[1759816371979,0.9484,4715.8,4715.7,0.7327]
[1759816372680,1.24542,4715.5,4715.4,0.00186543]
[1759816372881,1.7175058,4715.5,4715.4,0.32396543]
[1759816373082,1.7175058,4715.5,4715.4,0.53006543]
[1759816373378,1.24542,4715.5,4715.4,0.53006543]
[1759816373578,4.44001407,4715.5,4715.4,0.53006543]
[1759816373777,4.44001407,4715.5,4715.4,0.00186543]
[1759816374681,4.65201407,4715.5,4715.4,0.00186543]
[1759816380079,0.79496,4715.1,4715.0,3.2078]
[1759816380284,0.7364,4714.6,4714.5,3.736]
[1759816380482,0.9484,4714.6,4714.5,3.736]
[1759816380681,0.9484,4714.6,4714.5,3.9405]
[1759816381084,0.9484,4714.6,4714.5,3.94308108]
[1759816381385,0.9484,4714.6,4714.5,0.73528108]
[1759816381386,3.51651252,4714.6,4714.5,0.73528108]
[1759816381587,3.72851252,4714.6,4714.5,0.86448108]
[1759816381780,3.72851252,4714.6,4714.5,0.53078108]
[1759816381986,3.72851252,4714.6,4714.5,0.32468108]
[1759816382381,3.51651252,4714.6,4714.5,0.53078108]
[1759816382576,3.72851252,4714.6,4714.5,0.53078108]
[1759816382780,3.72851252,4714.6,4714.5,0.32468108]
[1759816383580,3.72851252,4714.6,4714.5,0.00258108]
[1759816383776,4.19981905,4714.6,4714.5,0.00258108]
[1759816384686,4.19978,4714.6,4714.5,0.00258108]
[1759816385588,4.19978,4714.6,4714.5,0.52438108]
[1759816385784,0.38164,4714.1,4713.9,3.2078]
[1759816385988,1.33445,4714.0,4713.9,0.5218]
[1759816386184,0.7408,4713.7,4713.6,0.5218]
[1759816386386,0.9528,4713.7,4713.6,0.7359]
[1759816386781,0.9528,4713.7,4713.6,0.73804938]
[1759816387188,3.69463561,4713.7,4713.6,0.73804938]
[1759816387383,3.69463561,4713.7,4713.6,0.00214938]
[1759816388088,4.16549362,4713.7,4713.6,0.00214938]
[1759816388286,3.69463561,4713.7,4713.6,0.00214938]
[1759816389090,4.16532194,4713.7,4713.6,0.00214938]
[1759816389293,3.69463561,4713.7,4713.6,0.00214938]
[1759816390090,1.12252,4713.1,4713.0,0.3046]
[1759816390290,1.33452,4713.1,4713.0,0.5218]
[1759816390490,4.02952586,4713.1,4713.0,0.5218]
[1759816390791,0.7408,4713.0,4712.9,3.53361858]
[1759816390982,0.7408,4713.0,4712.9,3.53601051]
[1759816391182,3.53656305,4713.0,4712.9,3.53601051]
[1759816391393,3.53656305,4713.0,4712.9,3.75321051]
[1759816392596,3.65616305,4713.0,4712.9,0.02361051]
[1759816393789,3.53656305,4713.0,4712.9,0.54541051]
[1759816393995,3.65616305,4713.0,4712.9,0.02361051]
[1759816395789,3.53656305,4713.0,4712.9,0.75951051]
[1759816395989,3.74856305,4713.0,4712.9,0.75951051]
[1759816396292,3.86816305,4713.0,4712.9,0.02361051]
[1759816397197,3.65616305,4713.0,4712.9,0.02361051]
[1759816397697,0.7408,4712.3,4712.2,3.5124]
[1759816398000,0.9528,4712.3,4712.2,3.7296]
[1759816398195,0.9528,4712.3,4712.2,3.9437]
[1759816398695,0.9528,4712.3,4712.2,3.94603747]
[1759816400596,0.9528,4712.3,4712.2,3.73193747]
[1759816401201,3.66672586,4712.3,4712.2,0.00233747]
[1759816403286,4.1360395,4712.3,4712.2,0.00233747]
[1759816403991,0.4312,4711.7,4711.6,3.5124]
[1759816404190,0.9528,4711.7,4711.1,3.2078]
[1759816404396,0.69144,4711.6,4711.1,3.6391]
[1759816404595,0.3096,4711.5,4711.1,3.6391]
[1759816404895,0.2142,4711.3,4711.2,0.7359]
[1759816405702,0.212,4711.3,4711.2,0.7359]
[1759816405901,0.212,4711.3,4711.2,1.11777]
[1759816407901,0.4262,4711.3,4711.2,0.7359]
[1759816408102,0.5238,4711.3,4711.2,0.7359]
[1759816408302,0.7358,4711.3,4711.2,0.7359]
[1759816408996,0.9528,4711.3,4711.2,0.7359]
[1759816409203,0.6432,4711.3,4711.2,0.7359]
[1759816409594,1.51928399,4713.7,4711.9,3.2078]
[1759816409795,1.89910499,4715.6,4715.0,0.38157]
[1759816410102,7.96523445,4716.7,4715.0,0.38157]
[1759816410103,2.75991929,4715.7,4715.6,0.4313]
[1759816410304,2.97411929,4715.7,4715.6,0.7359]
[1759816410498,0.2142,4715.7,4715.6,0.7359]
[1759816410698,0.52574187,4715.7,4715.6,0.73833506]
[1759816411004,0.7408,4716.3,4716.2,0.7359]
[1759816411203,0.9528,4716.3,4716.2,0.724169]
[1759816411403,3.69646128,4716.3,4716.2,0.724169]
[1759816411705,4.07792128,4716.3,4716.2,0.292869]